bitfinex-derivatives/quotes_BTCF0:USTF0_20210111
["timestamp","ask_amount","ask_price","bid_price","bid_amount"]
[1610359058176,4.6751,35677.0,35664.0,0.13632608]
[1610359058177,0.01410886,35672.0,35664.0,0.13632608]
[1610359058578,0.01410806,35676.0,35664.0,0.13632608]
[1610359058776,0.01410779,35671.0,35664.0,0.13632608]
[1610359058975,0.01410733,35675.0,35664.0,0.13632608]
[1610359059375,0.01410722,35676.0,35664.0,0.13632608]
[1610359059577,0.13632608,35672.0,35671.0,0.13632608]
[1610359060177,0.13666798,35672.0,35671.0,0.13632608]
[1610359062578,0.0003419,35672.0,35671.0,0.13632608]
[1610359062980,0.01410517,35681.0,35671.0,0.13632608]
[1610359063182,0.00034186,35672.0,35671.0,0.13632608]
[1610359063480,0.00034186,35680.0,35671.0,0.13632608]
[1610359063682,0.13632608,35681.0,35679.0,0.13632608]
[1610359064081,0.00034184,35680.0,35679.0,0.13632608]
[1610359065180,3.35093617,35701.0,35679.0,0.13632608]
[1610359065580,0.00034181,35685.0,35671.0,1.0]
[1610359065781,0.10967,35690.0,35675.0,3.3916]
[1610359066183,0.01409648,35689.0,35675.0,3.3916]
[1610359067683,0.01409648,35689.0,35688.0,0.13632608]
[1610359068485,0.00034179,35689.0,35688.0,0.13632608]
[1610359068687,0.13632608,35690.0,35688.0,0.13632608]
[1610359069087,0.00034177,35689.0,35688.0,0.13632608]
[1610359069488,0.01409558,35689.0,35688.0,0.13632608]
[1610359069788,0.00034177,35689.0,35688.0,0.13632608]
[1610359069989,0.00034177,35689.0,35688.0,1.13632608]
[1610359071894,0.00034177,35689.0,35688.0,0.13632608]
[1610359072696,0.00034166,35696.0,35688.0,0.13632608]
[1610359072896,0.00034166,35689.0,35688.0,0.13632608]
[1610359073298,0.00034166,35695.0,35688.0,0.13632608]
[1610359073498,0.00034166,35689.0,35688.0,0.13632608]
[1610359073699,0.00034166,35694.0,35688.0,0.13632608]
[1610359073901,0.00034166,35689.0,35688.0,0.13632608]
[1610359074301,0.00034166,35696.0,35688.0,0.13632608]
[1610359074500,0.00034166,35689.0,35688.0,0.13632608]
[1610359074701,0.00034166,35695.0,35688.0,0.13632608]
[1610359075002,0.00034166,35696.0,35688.0,0.13632608]
[1610359075403,0.00034166,35694.0,35688.0,0.13632608]
[1610359075603,0.13632608,35689.0,35688.0,0.13632608]
[1610359076003,0.13666776,35689.0,35688.0,0.13632608]
[1610359079609,0.13666776,35689.0,35683.0,0.13632608]
[1610359079809,0.13666776,35689.0,35682.0,0.10292]
[1610359080009,0.0003417,35688.0,35672.0,0.08629]
[1610359080210,0.0003417,35688.0,35666.0,4.0509]
[1610359081613,0.0003417,35688.0,35668.0,0.13632608]
[1610359081811,0.0003417,35688.0,35666.0,4.0509]
[1610359082010,1.0,35682.0,35666.0,4.0509]
[1610359082412,0.00034185,35681.0,35666.0,4.0509]
[1610359082611,0.01410007,35681.0,35666.0,4.0509]
[1610359082811,0.01410007,35681.0,35664.0,1.0]
[1610359083012,0.01410007,35681.0,35664.0,0.623]
[1610359083213,0.01410007,35681.0,35616.0,0.0844]
[1610359083618,0.01410007,35681.0,35590.0,0.2981]
[1610359083619,0.13632608,35655.0,35617.0,0.2786]
[1610359083815,0.21463608,35655.0,35617.0,0.2786]
[1610359084015,0.00034201,35654.0,35617.0,0.2786]
[1610359084216,0.00034201,35654.0,35610.0,0.22132608]
[1610359084416,0.01410891,35654.0,35599.0,0.0843]
[1610359084615,2.86479717,35648.0,35588.0,0.0853]
[1610359085015,2.86471421,35644.0,35588.0,0.0853]
[1610359085218,2.94317421,35644.0,35588.0,0.0853]
[1610359085414,2.86592748,35641.0,35588.0,0.0853]
[1610359085614,0.13632608,35616.0,35600.0,0.13632608]
[1610359085815,0.13632608,35616.0,35609.0,8.3418]
[1610359086016,0.13666826,35616.0,35609.0,8.3418]
[1610359086515,0.13632608,35616.0,35609.0,8.3418]
[1610359087518,0.07681,35624.0,35609.0,8.3418]
[1610359087715,0.07681,35624.0,35579.0,0.0849]
[1610359087716,0.13632608,35616.0,35614.0,0.13632608]
[1610359088517,0.07681,35624.0,35614.0,0.13632608]
[1610359089719,0.07681,35624.0,35623.0,0.13632608]
[1610359090118,3.5721,35631.0,35623.0,0.13632608]
[1610359090720,0.07846,35644.0,35623.0,0.13632608]
[1610359090921,3.88696,35651.0,35623.0,0.13632608]
[1610359091322,3.88696,35651.0,35643.0,1.0]
[1610359091720,3.88696,35651.0,35650.0,0.13632608]
[1610359093921,0.07831,35655.0,35650.0,0.13632608]
[1610359094123,3.37089374,35680.0,35650.0,0.13632608]
[1610359094525,0.00034182,35679.0,35650.0,0.13632608]
[1610359094722,3.37089374,35680.0,35650.0,0.13632608]
[1610359094923,3.37028124,35687.0,35651.0,0.01]
[1610359095523,0.00034172,35686.0,35651.0,0.0941]
[1610359095722,0.2215178,35686.0,35685.0,0.13632608]
[1610359095923,0.2215178,35686.0,35651.0,0.0941]
[1610359096324,0.00034172,35685.0,35651.0,0.0941]
[1610359096923,0.00034172,35685.0,35651.0,0.01]
[1610359097125,0.00034172,35685.0,35680.0,0.01]
[1610359097723,0.13632608,35681.0,35680.0,0.01]
[1610359098123,0.1366678,35681.0,35680.0,0.01]
[1610359098324,0.00034172,35681.0,35680.0,0.01]
[1610359098723,0.00034172,35685.0,35651.0,0.01]
[1610359098923,0.08485,35686.0,35651.0,0.01]
[1610359099123,0.0003417,35684.0,35651.0,0.01]
[1610359099524,0.0003417,35685.0,35651.0,0.01]
[1610359099726,0.08485,35686.0,35684.0,0.13632608]
[1610359100124,0.08485,35686.0,35660.0,0.0846]
[1610359100623,3.3691081,35694.0,35660.0,0.0846]
[1610359101024,0.00034168,35693.0,35660.0,0.0846]
[1610359101223,0.08421168,35693.0,35660.0,0.0846]
[1610359101823,0.08387,35693.0,35692.0,0.13632608]
[1610359102026,0.08387,35693.0,35664.0,0.0827]
[1610359102325,3.36737811,35708.0,35669.0,4.3653]
[1610359102523,0.11139,35693.0,35669.0,4.3653]
[1610359103325,0.11139,35693.0,35664.0,0.0827]
[1610359103727,0.11139,35693.0,35692.0,0.13632608]
[1610359103927,0.11139,35693.0,35676.0,0.0846]
[1610359104330,3.36658593,35711.0,35676.0,0.0846]
[1610359104729,0.00034153,35710.0,35692.0,6.0]
[1610359104932,0.10421153,35710.0,35692.0,4.84226]
[1610359105130,0.10387,35710.0,35684.0,0.0832]
[1610359105330,0.10387,35710.0,35676.0,0.0846]
[1610359105732,0.24019608,35710.0,35709.0,0.13632608]
[1610359105932,0.24019608,35710.0,35678.0,3.9174]
[1610359107333,0.23169608,35710.0,35678.0,3.04933]
[1610359107535,0.22019608,35710.0,35678.0,3.04933]
[1610359107733,0.08387,35710.0,35706.0,0.13632608]
[1610359107934,0.08387,35710.0,35678.0,3.04933]
[1610359109837,0.08387,35710.0,35692.0,0.13632608]
[1610359110037,3.3614358,35719.0,35692.0,0.13632608]
[1610359110635,3.1934358,35719.0,35692.0,0.13632608]
[1610359110837,0.2863,35728.0,35693.0,0.0831]
[1610359111837,0.2863,35728.0,35710.0,0.13632608]
[1610359112237,1.0,35736.0,35710.0,0.13632608]
[1610359112839,0.00034146,35735.0,35710.0,0.13632608]
[1610359113039,0.07630146,35735.0,35710.0,0.13632608]
[1610359113238,3.52418593,35746.0,35710.0,0.13632608]
[1610359113438,0.07294,35735.0,35710.0,0.13632608]
[1610359113838,0.07294,35735.0,35719.0,0.13632608]
[1610359115839,0.13632608,35720.0,35719.0,0.13632608]
[1610359116641,0.22092608,35720.0,35719.0,0.13632608]
[1610359116840,0.13632608,35720.0,35719.0,0.13632608]
[1610359117041,0.12212608,35720.0,35711.0,3.2574]
[1610359117855,0.13632608,35712.0,35711.0,3.2574]
[1610359118043,0.07832,35712.0,35711.0,3.2574]
[1610359118444,0.07552,35712.0,35711.0,3.2574]
[1610359119547,0.06855,35722.0,35711.0,3.2574]
[1610359119948,0.13632608,35712.0,35711.0,3.2574]
[1610359122651,0.12632608,35712.0,35711.0,3.2574]
[1610359123251,0.02687608,35722.0,35711.0,3.2574]
[1610359123451,0.07294,35735.0,35711.0,3.2574]
[1610359123651,3.34085179,35749.0,35711.0,3.2574]
[1610359123852,0.0003414,35734.0,35714.0,0.13632608]
[1610359124052,0.10431,35734.0,35714.0,0.13632608]
[1610359124454,0.0003414,35733.0,35714.0,0.13632608]
[1610359125858,0.0003414,35733.0,35723.0,0.13632608]
[1610359126258,0.0003414,35733.0,35712.0,0.01]
[1610359126457,0.0946514,35734.0,35712.0,0.01]
[1610359126659,0.00034136,35732.0,35712.0,0.01]
[1610359126958,0.00034136,35733.0,35712.0,0.01]
[1610359127158,0.00034136,35731.0,35712.0,0.01]
[1610359127560,0.00034136,35733.0,35712.0,0.01]
[1610359127761,0.00034136,35730.0,35712.0,0.01]
[1610359127962,0.00034134,35732.0,35727.0,0.13632608]
[1610359128363,0.08499274,35734.0,35712.0,0.01]
[1610359128561,0.00034133,35731.0,35712.0,0.01]
[1610359128762,0.00034133,35733.0,35712.0,0.01]
[1610359129062,0.00034133,35730.0,35712.0,0.01]
[1610359129262,0.00034131,35732.0,35712.0,0.01]
[1610359129664,0.00034131,35733.0,35712.0,0.01]
[1610359129863,0.13632608,35713.0,35712.0,0.01]
[1610359130862,0.1366675,35713.0,35712.0,0.01]
[1610359133863,0.21857608,35717.0,35712.0,0.14632608]
[1610359134865,0.02499274,35734.0,35712.0,0.14632608]
[1610359135066,3.3004,35742.0,35712.0,0.14632608]
[1610359135266,3.33061327,35760.0,35712.0,0.14632608]
[1610359135466,0.0003413,35733.0,35712.0,0.14632608]
[1610359135668,0.01315659,35752.0,35712.0,0.14632608]
[1610359135865,0.00034127,35732.0,35730.0,0.13632608]
[1610359136266,0.08062,35732.0,35730.0,0.13632608]
[1610359136466,0.00034126,35731.0,35730.0,0.13632608]
[1610359137868,0.13666734,35731.0,35730.0,0.13632608]
[1610359138270,0.13666734,35731.0,35712.0,0.01]
[1610359138868,0.00034126,35730.0,35712.0,0.01]
[1610359139568,0.00034126,35730.0,35713.0,0.00036911]
[1610359139968,0.00034126,35730.0,35719.0,0.13632608]
[1610359140368,0.00034129,35731.0,35719.0,0.13632608]
[1610359140569,0.00034131,35729.0,35712.0,0.01]
[1610359140969,0.00034131,35731.0,35713.0,0.00036913]
[1610359141169,0.00034131,35728.0,35713.0,0.00036913]
[1610359141369,0.00034131,35730.0,35713.0,0.00036913]
[1610359141770,0.00034128,35727.0,35713.0,0.00036913]
[1610359141973,0.00034128,35729.0,35726.0,0.13632608]
[1610359142173,0.08062,35732.0,35726.0,0.13632608]
[1610359142372,0.13632608,35735.0,35726.0,0.13632608]
[1610359142572,0.00034125,35728.0,35726.0,0.13632608]
[1610359142773,0.00034125,35734.0,35726.0,0.13632608]
[1610359142973,0.00034123,35727.0,35726.0,0.13632608]
[1610359143276,0.00034123,35733.0,35726.0,0.13632608]
[1610359143473,0.00034123,35727.0,35726.0,0.13632608]
[1610359143873,0.13632608,35727.0,35726.0,0.13632608]
[1610359144075,0.10269,35742.0,35726.0,0.13632608]
[1610359144273,0.10269,35742.0,35717.0,0.08363]
[1610359144675,0.00034124,35741.0,35717.0,0.08363]
[1610359144874,0.00034124,35741.0,35718.0,0.00036911]
[1610359145575,0.00034124,35741.0,35717.0,0.08363]
[1610359145975,0.00034124,35741.0,35723.0,0.13632608]
[1610359146575,0.00034124,35741.0,35717.0,0.08363]
[1610359146776,0.01315101,35741.0,35717.0,0.08363]
[1610359147177,0.01280977,35741.0,35717.0,0.08363]
[1610359147376,0.01280977,35741.0,35709.0,0.09082]
[1610359147578,0.00034128,35740.0,35709.0,0.09082]
[1610359147778,0.01315105,35741.0,35709.0,0.09082]
[1610359147977,0.00034128,35739.0,35719.0,0.13632608]
[1610359148177,0.00034125,35740.0,35719.0,0.13632608]
[1610359148479,0.01315102,35741.0,35719.0,0.13632608]
[1610359148878,0.00034125,35739.0,35720.0,0.0833]
[1610359149078,0.00034125,35740.0,35719.0,0.13632608]
[1610359149278,0.00034125,35738.0,35719.0,0.13632608]
[1610359149478,0.00034125,35739.0,35719.0,0.13632608]
[1610359149879,0.01315102,35741.0,35719.0,0.13632608]
[1610359150078,0.01315102,35741.0,35709.0,0.09082]
[1610359150079,0.00034125,35738.0,35726.0,0.13632608]
[1610359150278,0.00034125,35740.0,35726.0,0.13632608]
[1610359150578,0.01315102,35741.0,35726.0,0.13632608]
[1610359150778,0.01315102,35741.0,35710.0,0.0832]
[1610359150980,0.00034125,35739.0,35710.0,0.0832]
[1610359151179,0.00034123,35740.0,35710.0,0.0832]
[1610359151381,0.00034123,35738.0,35710.0,0.0832]
[1610359151579,2.84870733,35739.0,35710.0,0.0832]
[1610359151779,2.84870733,35739.0,35709.0,0.09082]
[1610359151981,0.01314873,35738.0,35709.0,0.09082]
[1610359152181,0.01314873,35738.0,35723.0,0.13632608]
[1610359152381,2.85186053,35736.0,35723.0,0.13632608]
[1610359152781,0.01315135,35735.0,35723.0,0.13632608]
[1610359153585,2.8673429,35737.0,35723.0,0.13632608]
[1610359153784,0.01315003,35734.0,35723.0,0.13632608]
[1610359153983,0.0131497,35736.0,35723.0,0.13632608]
[1610359154184,0.13632608,35724.0,35723.0,0.13632608]
[1610359154584,0.13666727,35724.0,35723.0,0.13632608]
[1610359156486,0.00034119,35724.0,35723.0,0.13632608]
[1610359156887,0.01314895,35733.0,35723.0,0.13632608]
[1610359157287,0.00034119,35724.0,35723.0,0.13632608]
[1610359157487,0.01314909,35732.0,35723.0,0.13632608]
[1610359157687,0.00034116,35724.0,35723.0,0.13632608]
[1610359157888,0.00034116,35731.0,35723.0,0.13632608]
[1610359158087,0.0128079,35732.0,35719.0,0.08194]
[1610359158088,0.0128079,35732.0,35727.0,0.13632608]
[1610359158489,0.01314908,35732.0,35727.0,0.13632608]
[1610359158791,2.87651629,35732.0,35727.0,0.13632608]
[1610359159189,0.01314865,35731.0,35727.0,0.13632608]
[1610359159489,0.01314812,35732.0,35727.0,0.13632608]
[1610359159690,2.87848542,35732.0,35727.0,0.13632608]
[1610359159891,0.01314833,35730.0,35727.0,0.13632608]
[1610359160090,0.13632608,35728.0,35727.0,0.13632608]
[1610359160692,0.14947378,35728.0,35727.0,0.13632608]
[1610359160891,7.378e-05,35728.0,35727.0,0.13632608]
[1610359161493,2.88234204,35732.0,35727.0,0.13632608]
[1610359161693,2.8823644,35731.0,35727.0,0.13632608]
[1610359162094,0.13632608,35728.0,35727.0,0.13632608]
[1610359162495,0.14904478,35728.0,35727.0,0.13632608]
[1610359163297,0.10684478,35728.0,35727.0,0.13632608]
[1610359163498,0.0127187,35728.0,35727.0,0.13632608]
[1610359163697,2.87043304,35731.0,35727.0,0.13632608]
[1610359163900,2.85603304,35731.0,35727.0,0.13632608]
[1610359164098,0.0125377,35730.0,35727.0,0.13632608]
[1610359164898,0.01253704,35733.0,35727.0,0.13632608]
[1610359165098,0.01253644,35729.0,35727.0,0.13632608]
[1610359165298,0.01253641,35732.0,35727.0,0.13632608]
[1610359165499,2.87705157,35737.0,35727.0,0.13632608]
[1610359165900,2.72141229,35737.0,35727.0,0.13632608]
[1610359166102,2.72141229,35737.0,35736.0,0.13632608]
[1610359166501,2.04691229,35737.0,35736.0,0.13632608]
[1610359166699,0.01218645,35737.0,35736.0,0.13632608]
[1610359166900,3.33887835,35749.0,35736.0,0.13632608]
[1610359167302,3.54955127,35764.0,35736.0,0.13632608]
[1610359167501,0.01201569,35748.0,35736.0,0.13632608]
[1610359167702,0.08333,35756.0,35736.0,0.13632608]
[1610359167901,0.00034099,35747.0,35737.0,0.0844]
[1610359168102,0.07837099,35756.0,35737.0,0.0844]
[1610359168303,0.0115079,35755.0,35746.0,0.13632608]
[1610359168503,0.01011986,35756.0,35746.0,0.13632608]
[1610359170106,0.01011986,35756.0,35755.0,0.13632608]
[1610359170505,0.00034085,35756.0,35755.0,0.13632608]
[1610359170907,0.00034085,35767.0,35755.0,0.13632608]
[1610359171106,0.00034083,35756.0,35755.0,0.13632608]
[1610359171308,0.09813,35760.0,35755.0,0.13632608]
[1610359171707,0.00034083,35756.0,35755.0,0.13632608]
[1610359171907,0.00034083,35759.0,35755.0,0.13632608]
[1610359172107,0.00034083,35756.0,35755.0,0.13632608]
[1610359172307,0.00037083,35765.0,35755.0,0.13632608]
[1610359172708,0.00034082,35764.0,35755.0,0.13632608]
[1610359172909,0.10404082,35764.0,35755.0,0.13632608]
[1610359173514,0.07838161,35764.0,35755.0,0.13632608]
[1610359173711,0.0836,35763.0,35755.0,0.13632608]
[1610359174113,0.07838161,35764.0,35755.0,0.13632608]
[1610359174314,0.07838161,35764.0,35762.0,0.13632608]
[1610359174511,0.07372241,35764.0,35762.0,0.13632608]
[1610359174712,0.00042241,35764.0,35762.0,0.13632608]
[1610359175112,3.54341085,35785.0,35762.0,0.13632608]
[1610359175318,3.36974039,35780.0,35762.0,0.13632608]
[1610359175512,3.46461039,35780.0,35762.0,0.13632608]
[1610359175912,0.00034078,35779.0,35762.0,0.13632608]
[1610359176113,3.03075173,35774.0,35762.0,0.13632608]
[1610359176313,3.03075173,35774.0,35772.0,0.13632608]
[1610359176717,0.00034051,35773.0,35772.0,0.13632608]
[1610359176915,0.00034051,35773.0,35750.0,0.0831]
[1610359177116,0.00034051,35773.0,35749.0,3.382]
[1610359177316,3.36574223,35779.0,35749.0,3.382]
[1610359177517,0.00034083,35772.0,35749.0,3.382]
[1610359177718,0.00034083,35778.0,35749.0,3.382]
[1610359178118,0.00034083,35771.0,35749.0,3.382]
[1610359178317,0.11331,35772.0,35750.0,0.0849]
[1610359178517,0.00034083,35770.0,35749.0,3.382]
[1610359178917,0.00034083,35771.0,35749.0,3.382]
[1610359179322,0.11331,35772.0,35749.0,3.382]
[1610359179518,0.00034082,35770.0,35750.0,0.0845]
[1610359179719,0.00034082,35771.0,35749.0,3.382]
[1610359180320,0.11331,35772.0,35770.0,0.13632608]
[1610359180720,0.0003408,35771.0,35770.0,0.13632608]
[1610359181320,0.0003408,35779.0,35770.0,0.13632608]
[1610359181519,0.0003408,35771.0,35770.0,0.13632608]
[1610359181920,0.0003408,35778.0,35770.0,0.13632608]
[1610359182120,0.0003408,35771.0,35756.0,3.48216]
[1610359182321,0.0003408,35777.0,35756.0,3.48216]
[1610359182543,0.00034082,35770.0,35756.0,3.48216]
[1610359182739,0.11235082,35770.0,35756.0,3.3757]
[1610359182932,0.11201,35770.0,35756.0,3.3757]
[1610359183122,0.00034089,35769.0,35756.0,3.3757]
[1610359184339,0.13632608,35757.0,35756.0,3.3757]
[1610359184730,0.13666701,35757.0,35756.0,3.3757]
[1610359185521,0.13632608,35757.0,35756.0,3.3757]
[1610359185721,0.13666702,35757.0,35756.0,3.3757]
[1610359187325,0.13666702,35757.0,35736.0,0.10134]
[1610359187526,0.13666702,35757.0,35734.0,0.13632608]
[1610359187931,0.00034096,35756.0,35734.0,0.13632608]
[1610359188326,0.00034096,35756.0,35738.0,0.13632608]
[1610359188526,0.00034096,35756.0,35739.0,0.0843]
[1610359188929,0.00034093,35759.0,35738.0,0.13632608]
[1610359189128,0.0003409,35755.0,35738.0,0.13632608]
[1610359189531,0.0003409,35758.0,35738.0,0.13632608]
[1610359189730,0.00034087,35754.0,35738.0,0.13632608]
[1610359189929,4.5574,35764.0,35738.0,0.13632608]
[1610359190130,4.5284,35764.0,35738.0,0.13632608]
[1610359190329,0.13132608,35762.0,35761.0,0.13632608]
[1610359190528,0.10532608,35762.0,35744.0,0.0835]
[1610359190993,0.00034084,35761.0,35744.0,0.0835]
[1610359191391,0.00034084,35769.0,35744.0,0.0835]
[1610359191592,0.00034081,35760.0,35744.0,0.0835]
[1610359191793,0.00034081,35768.0,35744.0,0.17099]
[1610359192197,0.00034081,35769.0,35767.0,0.13632608]
[1610359192394,0.10001,35770.0,35767.0,0.13632608]
[1610359192595,0.00034077,35768.0,35767.0,0.13632608]
[1610359193799,0.00034075,35768.0,35767.0,0.13632608]
[1610359194000,0.00034075,35779.0,35767.0,0.13632608]
[1610359194199,0.00034073,35768.0,35761.0,0.083]
[1610359194600,0.00034073,35778.0,35761.0,0.083]
[1610359194801,0.00034077,35767.0,35761.0,0.083]
[1610359195002,0.00034075,35777.0,35761.0,0.19365]
[1610359195471,0.00034071,35766.0,35761.0,0.19365]
[1610359195640,0.00034071,35776.0,35761.0,0.19365]
[1610359195841,0.00034071,35765.0,35761.0,0.19365]
[1610359196040,0.00034071,35775.0,35761.0,0.19365]
[1610359196240,0.00034071,35775.0,35774.0,0.13632608]
[1610359196444,0.13632608,35786.0,35774.0,0.13632608]
[1610359196646,0.00034071,35775.0,35774.0,0.13632608]
[1610359196843,0.00034069,35779.0,35774.0,0.13632608]
[1610359197042,0.00034071,35775.0,35774.0,0.13632608]
[1610359197346,0.09976,35784.0,35774.0,0.13632608]
[1610359197744,0.00034066,35775.0,35774.0,0.23014608]
[1610359197948,0.00034066,35783.0,35774.0,0.23014608]
[1610359198146,0.00034064,35775.0,35774.0,0.23014608]
[1610359198346,0.00034064,35782.0,35774.0,0.23014608]
[1610359198746,0.00034064,35785.0,35774.0,0.23014608]
[1610359198947,0.00034064,35781.0,35774.0,0.23014608]
[1610359199148,0.00034064,35784.0,35774.0,0.23014608]
[1610359199547,0.00034064,35785.0,35774.0,0.23014608]
[1610359199748,0.00034064,35783.0,35774.0,0.23014608]
[1610359199949,0.13632608,35786.0,35774.0,0.23014608]
[1610359199950,0.00034064,35784.0,35774.0,0.23014608]
[1610359200349,0.00034064,35785.0,35783.0,0.13632608]
[1610359200549,0.13632608,35786.0,35783.0,0.13632608]
[1610359200749,0.00034062,35784.0,35783.0,0.13632608]
[1610359201149,0.00034064,35785.0,35783.0,0.13632608]
[1610359201350,0.13632608,35786.0,35783.0,0.13632608]
[1610359201550,0.00034063,35784.0,35783.0,0.13632608]
[1610359201951,0.00034063,35785.0,35783.0,0.13632608]
[1610359202150,0.00034063,35784.0,35783.0,0.13632608]
[1610359202552,0.00034063,35785.0,35783.0,0.13632608]
[1610359203554,0.00034063,35785.0,35774.0,0.09382]
[1610359203754,0.00034063,35785.0,35764.0,0.0846]
[1610359203953,0.0116391,35795.0,35761.0,0.11065]
[1610359204153,0.00034063,35784.0,35741.0,1.7779]
[1610359204353,0.00034063,35784.0,35783.0,0.13632608]
[1610359204553,0.13632608,35786.0,35783.0,0.13632608]
[1610359204755,0.00034063,35784.0,35783.0,0.13632608]
[1610359204954,0.00034063,35785.0,35783.0,0.13632608]
[1610359205356,0.00034063,35784.0,35783.0,0.13632608]
[1610359205555,0.13632608,35786.0,35783.0,0.13632608]
[1610359205756,0.00034064,35784.0,35774.0,0.09762]
[1610359205955,0.00034064,35785.0,35774.0,0.09762]
[1610359206257,0.13632608,35775.0,35770.0,4.6106]
[1610359206555,0.00034066,35774.0,35770.0,4.6106]
[1610359207957,0.00034066,35774.0,35749.0,3.7257]
[1610359208358,0.00034066,35774.0,35751.0,0.13632608]
[1610359208758,0.00034077,35780.0,35751.0,0.13632608]
[1610359208957,0.00034077,35773.0,35751.0,0.13632608]
[1610359209157,0.07279,35773.0,35751.0,0.13632608]
[1610359209357,0.07279,35773.0,35749.0,3.7257]
[1610359209758,0.00034077,35772.0,35749.0,3.7257]
[1610359210362,0.00034077,35772.0,35750.0,0.13632608]
[1610359210760,0.00034077,35772.0,35744.0,0.08749]
[1610359210961,0.00034077,35772.0,35716.0,0.0832]
[1610359211561,0.00034077,35772.0,35724.0,0.00037982]
[1610359211761,0.00034077,35772.0,35724.0,0.08905]
[1610359211960,3.36003405,35772.0,35724.0,0.08905]
[1610359212361,0.13632608,35725.0,35724.0,0.08905]
[1610359214365,0.13666711,35725.0,35724.0,0.08905]
[1610359214567,0.13666711,35725.0,35682.0,0.04025]
[1610359214968,0.2785,35724.0,35683.0,0.00037763]
[1610359215168,0.34886,35724.0,35683.0,0.00037763]
[1610359215569,0.00034117,35723.0,35682.0,0.04025]
[1610359215769,2.8601009,35722.0,35682.0,0.04025]
[1610359216168,2.86018603,35721.0,35682.0,0.04025]
[1610359216369,2.86052726,35721.0,35695.0,0.13632608]
[1610359216568,0.00034123,35720.0,35695.0,0.13632608]
[1610359217171,0.00034123,35721.0,35685.0,0.11143]
[1610359217372,0.00034125,35719.0,35696.0,3.4769]
[1610359217573,0.00034125,35720.0,35696.0,3.4769]
[1610359217772,3.5647,35713.0,35685.0,0.11143]
[1610359218173,3.66188,35713.0,35685.0,0.11143]
[1610359218372,0.13632608,35686.0,35685.0,0.11143]
[1610359218972,0.13632608,35686.0,35668.0,0.0839]
[1610359219972,3.3706,35688.0,35668.0,0.0839]
[1610359220172,3.3706,35688.0,35668.0,0.16374]
[1610359220370,3.3706,35688.0,35687.0,0.13632608]
[1610359220571,3.3706,35688.0,35687.0,0.24000608]
[1610359220778,3.3651,35688.0,35687.0,0.24000608]
[1610359220973,3.274,35688.0,35687.0,0.24000608]
[1610359222176,0.13632608,35691.0,35687.0,0.24000608]
[1610359222177,0.13632608,35691.0,35687.0,0.10368]
[1610359222571,2.78113228,35713.0,35687.0,0.10368]
[1610359222788,2.61067453,35714.0,35687.0,0.10368]
[1610359222973,2.85009056,35720.0,35687.0,0.10368]
[1610359223375,2.84870814,35721.0,35687.0,0.10368]
[1610359223574,1.0,35715.0,35687.0,0.10368]
[1610359223773,1.10684,35715.0,35687.0,0.10368]
[1610359224374,0.13632608,35688.0,35687.0,0.10368]
[1610359225774,0.13632608,35688.0,35668.0,0.07984]
[1610359226176,0.13632608,35688.0,35600.0,0.2962]
[1610359226391,0.0831,35692.0,35600.0,0.2962]
[1610359226392,0.0831,35692.0,35649.0,0.13632608]
[1610359226589,0.0914,35688.0,35649.0,0.09208]
[1610359227581,1.0,35662.0,35649.0,0.09208]
[1610359228380,0.13632608,35650.0,35649.0,0.09208]
[1610359228781,0.13632608,35650.0,35630.0,0.13632608]
[1610359228980,0.13632608,35650.0,35600.0,0.3808]
[1610359229181,0.13632608,35650.0,35644.0,4.4698]
[1610359229381,0.13632608,35650.0,35644.0,4.54588]
[1610359230383,0.13632608,35650.0,35649.0,0.13632608]
[1610359230983,0.0914,35688.0,35649.0,0.13632608]
[1610359232386,0.0914,35688.0,35672.0,0.13632608]
[1610359232586,0.2752,35706.0,35672.0,0.21744608]
[1610359233385,0.2752,35706.0,35672.0,0.08112]
[1610359233586,1.0,35697.0,35672.0,0.08112]
[1610359234387,0.13632608,35673.0,35672.0,0.08112]
[1610359234586,1.0,35697.0,35672.0,0.08112]
[1610359235588,0.11226,35701.0,35672.0,0.08112]
[1610359236489,0.11226,35701.0,35686.0,0.13632608]
[1610359237191,4.3135,35691.0,35686.0,0.13632608]
[1610359238493,0.03,35691.0,35686.0,0.13632608]
[1610359238705,0.03,35691.0,35690.0,0.13632608]
[1610359238912,0.685,35707.0,35690.0,0.13632608]
[1610359239307,3.6843,35716.0,35690.0,0.13632608]
[1610359239901,3.6843,35716.0,35690.0,0.21952608]
[1610359240710,3.6843,35716.0,35715.0,0.13632608]
[1610359240910,3.6843,35716.0,35690.0,0.0832]
[1610359241115,3.6843,35716.0,35715.0,0.07901]
[1610359241329,0.07379,35740.0,35715.0,6.07901]
[1610359241501,0.2983,35753.0,35715.0,6.07901]
[1610359242100,1.0,35758.0,35715.0,6.07901]
[1610359242800,1.0,35758.0,35739.0,0.13632608]
[1610359242999,1.0,35758.0,35739.0,0.21263608]
[1610359243199,0.2847,35769.0,35739.0,0.21263608]
[1610359244601,0.13632608,35740.0,35739.0,0.07631]
[1610359246201,0.13632608,35740.0,35715.0,0.07901]
[1610359246401,0.13632608,35740.0,35709.0,3.4392]
[1610359246603,0.09185,35750.0,35726.0,0.13632608]
[1610359246804,0.09185,35750.0,35726.0,0.21308608]
[1610359247002,0.09185,35750.0,35726.0,0.07676]
[1610359248605,0.13632608,35727.0,35726.0,0.07676]
[1610359249209,0.13632608,35727.0,35726.0,1.07676]
[1610359251107,0.13632608,35727.0,35726.0,0.07676]
[1610359251907,0.13632608,35727.0,35716.0,0.13632608]
[1610359252307,0.09185,35750.0,35716.0,0.13632608]
[1610359252507,0.2877,35754.0,35716.0,0.21556608]
[1610359252707,0.2877,35754.0,35728.0,0.13632608]
[1610359254709,0.2877,35754.0,35745.0,0.13632608]
[1610359254912,0.2877,35754.0,35726.0,0.0742]
[1610359255113,0.36832,35754.0,35726.0,0.0742]
[1610359256611,0.36832,35754.0,35727.0,0.13632608]
[1610359257212,0.36832,35754.0,35739.0,1.0]
[1610359258613,0.13632608,35740.0,35739.0,1.0]
[1610359259113,0.13632608,35740.0,35738.0,1.0]
[1610359259913,0.33664608,35754.0,35738.0,1.0]
[1610359260713,0.33664608,35754.0,35747.0,0.13632608]
[1610359261213,0.33664608,35754.0,35750.0,1.0]
[1610359262620,0.13632608,35751.0,35750.0,1.0]
[1610359263217,0.13632608,35751.0,35747.0,0.13632608]
[1610359264218,0.13632608,35751.0,35726.0,0.0742]
[1610359264419,0.13632608,35751.0,35686.0,1.2764]
[1610359264617,0.33664608,35754.0,35744.0,0.13632608]